[Event "Titled Tuesday Blitz December 14 2021"]
[White "Yi, Richard"]
[Black "Shvedova, Alexandra"]
[WhiteFideId "2079518"]
[BlackFideId "54154782"]
[WhiteElo "2590"]
[BlackElo "1920"]
[Result "1/2-1/2"]
[Round "04"]
[TimeControl "180+1"]
[Date "2021.12.15"]
[WhiteClock "0:00:09"]
[BlackClock "0:00:07"]

1. d4 {[%clk 0:03:00]}  d5 {[%clk 0:02:58]} 2. c4 {[%clk 0:03:01]}  e6 {[%clk 0:02:59]} 3. Nf3 {[%clk 0:03:01]}  Nf6 {[%clk 0:02:58]} 4. g3 {[%clk 0:03:00]}  dxc4 {[%clk 0:02:58]} 5. Bg2 {[%clk 0:03:00]}  Nc6 {[%clk 0:02:58]} 6. O-O {[%clk 0:03:00]}  Rb8 {[%clk 0:02:58]} 7. e3 {[%clk 0:02:59]}  b5 {[%clk 0:02:58]} 8. Qe2 {[%clk 0:02:44]}  Bb7 {[%clk 0:02:57]} 9. b3 {[%clk 0:02:44]}  cxb3 {[%clk 0:02:48]} 10. axb3 {[%clk 0:02:44]}  a6 {[%clk 0:02:49]} 11. Bb2 {[%clk 0:02:42]}  Be7 {[%clk 0:02:42]} 12. Rc1 {[%clk 0:02:40]}  O-O {[%clk 0:02:40]} 13. Ne5 {[%clk 0:02:30]}  Nxe5 {[%clk 0:02:36]} 14. Bxb7 {[%clk 0:02:31]}  Rxb7 {[%clk 0:02:35]} 15. dxe5 {[%clk 0:02:31]}  Nd5 {[%clk 0:02:33]} 16. Rxa6 {[%clk 0:02:29]}  c5 {[%clk 0:02:22]} 17. Nd2 {[%clk 0:02:14]}  Nb4 {[%clk 0:02:20]} 18. Raa1 {[%clk 0:02:05]}  Nd3 {[%clk 0:02:19]} 19. Rc2 {[%clk 0:02:01]}  Nxb2 {[%clk 0:02:17]} 20. Rxb2 {[%clk 0:02:01]}  Qd5 {[%clk 0:02:10]} 21. f4 {[%clk 0:01:53]}  Rd8 {[%clk 0:02:05]} 22. Ra5 {[%clk 0:01:48]}  Qd7 {[%clk 0:01:51]} 23. Ne4 {[%clk 0:01:41]}  Qc6 {[%clk 0:01:36]} 24. Nc3 {[%clk 0:01:35]}  b4 {[%clk 0:01:24]} 25. Na4 {[%clk 0:01:33]}  Rbd7 {[%clk 0:01:17]} 26. e4 {[%clk 0:01:06]}  Rd4 {[%clk 0:01:12]} 27. Rc2 {[%clk 0:00:35]}  Rxe4 {[%clk 0:01:11]} 28. Qf1 {[%clk 0:00:35]}  Red4 {[%clk 0:00:58]} 29. Rc1 {[%clk 0:00:34]}  Rd2 {[%clk 0:00:52]} 30. Nxc5 {[%clk 0:00:32]}  Qd5 {[%clk 0:00:42]} 31. Rb5 {[%clk 0:00:28]}  Qd4+ {[%clk 0:00:40]} 32. Kh1 {[%clk 0:00:26]}  Qb2 {[%clk 0:00:31]} 33. Ne4 {[%clk 0:00:14]}  Rxh2+ {[%clk 0:00:24]} 34. Kg1 {[%clk 0:00:14]}  Rc2 {[%clk 0:00:19]} 35. Re1 {[%clk 0:00:11]}  Qxb3 {[%clk 0:00:18]} 36. Rb1 {[%clk 0:00:02]}  Rb2 {[%clk 0:00:17]} 37. Re1 {[%clk 0:00:01]}  h6 {[%clk 0:00:16]} 38. Nf2 {[%clk 0:00:01]}  Qxg3+ {[%clk 0:00:16]} 39. Qg2 {[%clk 0:00:02]}  Qxg2+ {[%clk 0:00:15]} 40. Kxg2 {[%clk 0:00:03]}  Rdd2 {[%clk 0:00:15]} 41. Rf1 {[%clk 0:00:03]}  b3 {[%clk 0:00:15]} 42. Kf3 {[%clk 0:00:04]}  Rdc2 {[%clk 0:00:10]} 43. Rb7 {[%clk 0:00:04]}  Rc3+ {[%clk 0:00:05]} 44. Kg4 {[%clk 0:00:03]}  Bc5 {[%clk 0:00:05]} 45. Ne4 {[%clk 0:00:02]}  Rc4 {[%clk 0:00:06]} 46. Nd6 {[%clk 0:00:01]}  Bxd6 {[%clk 0:00:06]} 47. exd6 {[%clk 0:00:02]}  Rd4 {[%clk 0:00:06]} 48. d7 {[%clk 0:00:01]}  Rbd2 {[%clk 0:00:06]} 49. Rb8+ {[%clk 0:00:02]}  Kh7 {[%clk 0:00:06]} 50. Rxb3 {[%clk 0:00:03]}  Rxd7 {[%clk 0:00:06]} 51. Rbf3 {[%clk 0:00:04]}  f6 {[%clk 0:00:06]} 52. Kg3 {[%clk 0:00:03]}  R2d3 {[%clk 0:00:06]} 53. Re1 {[%clk 0:00:03]}  Rxf3+ {[%clk 0:00:06]} 54. Kxf3 {[%clk 0:00:04]}  Rd6 {[%clk 0:00:07]} 55. Re2 {[%clk 0:00:05]}  Kg6 {[%clk 0:00:07]} 56. Rg2+ {[%clk 0:00:05]}  Kf5 {[%clk 0:00:07]} 57. Rxg7 {[%clk 0:00:05]}  e5 {[%clk 0:00:07]} 58. fxe5 {[%clk 0:00:05]}  fxe5 {[%clk 0:00:08]} 59. Rf7+ {[%clk 0:00:04]}  Ke6 {[%clk 0:00:07]} 60. Rh7 {[%clk 0:00:04]}  Kd5 {[%clk 0:00:07]} 61. Ke3 {[%clk 0:00:04]}  Rf6 {[%clk 0:00:06]} 62. Rh8 {[%clk 0:00:04]}  Ke6 {[%clk 0:00:06]} 63. Re8+ {[%clk 0:00:04]}  Kf5 {[%clk 0:00:07]} 64. Rh8 {[%clk 0:00:05]}  Kg5 {[%clk 0:00:06]} 65. Ke4 {[%clk 0:00:06]}  h5 {[%clk 0:00:05]} 66. Rg8+ {[%clk 0:00:05]}  Kh4 {[%clk 0:00:05]} 67. Kxe5 {[%clk 0:00:05]}  Rf1 {[%clk 0:00:05]} 68. Ke4 {[%clk 0:00:04]}  Kh3 {[%clk 0:00:05]} 69. Ke3 {[%clk 0:00:03]}  h4 {[%clk 0:00:06]} 70. Ke2 {[%clk 0:00:04]}  Rf7 {[%clk 0:00:05]} 71. Rh8 {[%clk 0:00:02]}  Kh2 {[%clk 0:00:06]} 72. Rxh4+ {[%clk 0:00:02]}  Kg3 {[%clk 0:00:06]} 73. Rd4 {[%clk 0:00:03]}  Re7+ {[%clk 0:00:05]} 74. Kd3 {[%clk 0:00:04]}  Kf3 {[%clk 0:00:06]} 75. Rd8 {[%clk 0:00:04]}  Kf4 {[%clk 0:00:05]} 76. Rf8+ {[%clk 0:00:04]}  Ke5 {[%clk 0:00:06]} 77. Rf3 {[%clk 0:00:05]}  Ke6 {[%clk 0:00:06]} 78. Ke2 {[%clk 0:00:05]}  Kd6+ {[%clk 0:00:05]} 79. Kf2 {[%clk 0:00:06]}  Kd7 {[%clk 0:00:06]} 80. Rd3+ {[%clk 0:00:06]}  Ke6 {[%clk 0:00:06]} 81. Rf3 {[%clk 0:00:07]}  Kd6 {[%clk 0:00:06]} 82. Rb3 {[%clk 0:00:07]}  Ke6 {[%clk 0:00:06]} 83. Ke3 {[%clk 0:00:07]}  Kd6+ {[%clk 0:00:06]} 84. Kd2 {[%clk 0:00:07]}  Ke6 {[%clk 0:00:06]} 85. Kd3 {[%clk 0:00:07]}  Kd6 {[%clk 0:00:06]} 86. Kd4 {[%clk 0:00:08]}  Ke6 {[%clk 0:00:06]} 87. Rb6+ {[%clk 0:00:08]}  Kf5 {[%clk 0:00:06]} 88. Rb1 {[%clk 0:00:09]}  Rd7+ {[%clk 0:00:06]} 89. Kc5 {[%clk 0:00:09]}  Re7 {[%clk 0:00:05]} 90. Rf1+ {[%clk 0:00:10]}  Ke6 {[%clk 0:00:05]} 91. Re1+ {[%clk 0:00:09]}  Kf6 {[%clk 0:00:05]} 92. Rf1+ {[%clk 0:00:09]}  Ke6 {[%clk 0:00:04]} 93. Re1+ {[%clk 0:00:09]}  Kf6 {[%clk 0:00:05]} 94. Rd1 {[%clk 0:00:10]}  Re6 {[%clk 0:00:04]} 95. Kd5 {[%clk 0:00:10]}  Re5+ {[%clk 0:00:04]} 96. Kd6 {[%clk 0:00:09]}  Re6+ {[%clk 0:00:05]} 97. Kd5 {[%clk 0:00:09]}  Re5+ {[%clk 0:00:05]} 98. Kd4 {[%clk 0:00:10]}  Re6 {[%clk 0:00:05]} 99. Rf1+ {[%clk 0:00:10]}  Ke7 {[%clk 0:00:06]} 100. Kd5 {[%clk 0:00:10]}  Rd6+ {[%clk 0:00:06]} 101. Kc5 {[%clk 0:00:11]}  Re6 {[%clk 0:00:06]} 102. Rh1 {[%clk 0:00:12]}  Re5+ {[%clk 0:00:06]} 103. Kd4 {[%clk 0:00:11]}  Re6 {[%clk 0:00:06]} 104. Rh7+ {[%clk 0:00:10]}  Kd6 {[%clk 0:00:06]} 105. Ra7 {[%clk 0:00:10]}  Re7 {[%clk 0:00:06]} 106. Ra6+ {[%clk 0:00:07]}  Kd7 {[%clk 0:00:06]} 107. Ra7+ {[%clk 0:00:08]}  Ke6 {[%clk 0:00:06]} 108. Rxe7+ {[%clk 0:00:09]}  Kxe7 {[%clk 0:00:07]} 1/2-1/2


[Site "https://www.chess.com"]

[Event "Titled Tuesday Blitz December 14 2021"]
[White "Zubov, Alexander"]
[Black "Petesch, Gabriel"]
[WhiteFideId "14109409"]
[BlackFideId "2032465"]
[WhiteElo "2685"]
[BlackElo "2374"]
[Result "1-0"]
[Round "04"]
[TimeControl "180+1"]
[Date "2021.12.15"]
[WhiteClock "0:00:03"]
[BlackClock "0:00:02"]

1. d4 {[%clk 0:03:00]}  Nf6 {[%clk 0:02:59]} 2. c4 {[%clk 0:03:01]}  e6 {[%clk 0:02:58]} 3. Nc3 {[%clk 0:03:00]}  d5 {[%clk 0:02:57]} 4. cxd5 {[%clk 0:02:57]}  Nxd5 {[%clk 0:02:55]} 5. Nf3 {[%clk 0:02:55]}  Be7 {[%clk 0:02:54]} 6. e3 {[%clk 0:02:53]}  c5 {[%clk 0:02:50]} 7. Bc4 {[%clk 0:02:52]}  O-O {[%clk 0:02:45]} 8. O-O {[%clk 0:02:51]}  Nc6 {[%clk 0:02:43]} 9. a3 {[%clk 0:02:35]}  cxd4 {[%clk 0:02:27]} 10. exd4 {[%clk 0:02:35]}  Nxc3 {[%clk 0:02:16]} 11. bxc3 {[%clk 0:02:35]}  Bd7 {[%clk 0:02:16]} 12. Qd3 {[%clk 0:02:20]}  Rc8 {[%clk 0:02:13]} 13. Bb3 {[%clk 0:02:13]}  Bf6 {[%clk 0:02:06]} 14. Bc2 {[%clk 0:02:00]}  g6 {[%clk 0:02:06]} 15. Bh6 {[%clk 0:01:49]}  Re8 {[%clk 0:02:06]} 16. Rfe1 {[%clk 0:01:39]}  Qa5 {[%clk 0:01:58]} 17. h4 {[%clk 0:01:30]}  e5 {[%clk 0:01:25]} 18. Bb3 {[%clk 0:00:47]}  Bf5 {[%clk 0:00:56]} 19. Qe3 {[%clk 0:00:45]}  Qb6 {[%clk 0:00:26]} 20. Ba2 {[%clk 0:00:37]}  Qc7 {[%clk 0:00:20]} 21. Ng5 {[%clk 0:00:30]}  Bxg5 {[%clk 0:00:14]} 22. hxg5 {[%clk 0:00:15]}  Qd7 {[%clk 0:00:05]} 23. d5 {[%clk 0:00:09]}  Na5 {[%clk 0:00:02]} 24. Qxa7 {[%clk 0:00:09]}  Nc4 {[%clk 0:00:02]} 25. Bxc4 {[%clk 0:00:06]}  Rxc4 {[%clk 0:00:03]} 26. Rac1 {[%clk 0:00:04]}  Rg4 {[%clk 0:00:02]} 27. f3 {[%clk 0:00:03]}  Rg3 {[%clk 0:00:02]} 28. Qf2 {[%clk 0:00:03]} 1-0


[Site "https://www.chess.com"]

[Event "Titled Tuesday Blitz December 14 2021"]
[White "Aggelis, Nikolaos"]
[Black "Shkapenko, Pavel"]
[WhiteFideId "4213220"]
[BlackFideId "4151933"]
[WhiteElo "2154"]
[BlackElo "2386"]
[Result "1-0"]
[Round "05"]
[TimeControl "180+1"]
[Date "2021.12.15"]
[WhiteClock "0:00:27"]
[BlackClock "0:00:08"]

1. d4 {[%clk 0:03:00]}  Nf6 {[%clk 0:02:59]} 2. g3 {[%clk 0:03:01]}  e6 {[%clk 0:02:35]} 3. Bg2 {[%clk 0:03:00]}  c5 {[%clk 0:02:35]} 4. Nf3 {[%clk 0:03:00]}  cxd4 {[%clk 0:02:35]} 5. O-O {[%clk 0:03:01]}  Nc6 {[%clk 0:02:35]} 6. Nxd4 {[%clk 0:03:01]}  Qb6 {[%clk 0:02:35]} 7. Nb3 {[%clk 0:02:59]}  d5 {[%clk 0:02:33]} 8. c4 {[%clk 0:02:57]}  dxc4 {[%clk 0:02:28]} 9. Be3 {[%clk 0:02:56]}  Qa6 {[%clk 0:02:02]} 10. Nc5 {[%clk 0:02:49]}  Qa5 {[%clk 0:02:01]} 11. Bxc6+ {[%clk 0:02:22]}  bxc6 {[%clk 0:02:00]} 12. Qd4 {[%clk 0:02:21]}  Nd5 {[%clk 0:01:52]} 13. Ne4 {[%clk 0:02:17]}  Nxe3 {[%clk 0:01:50]} 14. Qxe3 {[%clk 0:02:17]}  Qe5 {[%clk 0:01:34]} 15. Qf3 {[%clk 0:01:52]}  Rb8 {[%clk 0:01:17]} 16. Nbd2 {[%clk 0:01:49]}  Qd5 {[%clk 0:01:01]} 17. Rfd1 {[%clk 0:01:40]}  f5 {[%clk 0:00:58]} 18. Qh5+ {[%clk 0:01:34]}  g6 {[%clk 0:00:50]} 19. Nf6+ {[%clk 0:01:31]}  Kf7 {[%clk 0:00:51]} 20. Nxd5 {[%clk 0:01:28]}  gxh5 {[%clk 0:00:50]} 21. Ne3 {[%clk 0:01:26]}  Rxb2 {[%clk 0:00:45]} 22. Ndxc4 {[%clk 0:01:23]}  Rb5 {[%clk 0:00:36]} 23. Rac1 {[%clk 0:01:16]}  Rc5 {[%clk 0:00:30]} 24. Rd8 {[%clk 0:01:08]}  Ba6 {[%clk 0:00:25]} 25. Ra8 {[%clk 0:01:01]}  Bxc4 {[%clk 0:00:22]} 26. Rxc4 {[%clk 0:01:00]}  Rxc4 {[%clk 0:00:22]} 27. Nxc4 {[%clk 0:01:01]}  Bg7 {[%clk 0:00:22]} 28. Rxa7+ {[%clk 0:00:58]}  Kg6 {[%clk 0:00:22]} 29. Rc7 {[%clk 0:00:56]}  Ra8 {[%clk 0:00:19]} 30. a3 {[%clk 0:00:56]}  Ra4 {[%clk 0:00:16]} 31. Rxc6 {[%clk 0:00:55]}  Kf7 {[%clk 0:00:16]} 32. Rc7+ {[%clk 0:00:52]}  Kg6 {[%clk 0:00:15]} 33. Kg2 {[%clk 0:00:52]}  Bf8 {[%clk 0:00:15]} 34. Ne5+ {[%clk 0:00:50]}  Kf6 {[%clk 0:00:14]} 35. Nd7+ {[%clk 0:00:47]}  Ke7 {[%clk 0:00:14]} 36. Nb6+ {[%clk 0:00:45]}  Kd6 {[%clk 0:00:14]} 37. Rf7 {[%clk 0:00:42]}  Ra6 {[%clk 0:00:09]} 38. Nc8+ {[%clk 0:00:43]}  Kc6 {[%clk 0:00:07]} 39. Rxf8 {[%clk 0:00:43]}  Rxa3 {[%clk 0:00:07]} 40. Ne7+ {[%clk 0:00:42]}  Kd7 {[%clk 0:00:07]} 41. Nxf5 {[%clk 0:00:43]}  exf5 {[%clk 0:00:07]} 42. Rxf5 {[%clk 0:00:43]}  Ke6 {[%clk 0:00:08]} 43. Rxh5 {[%clk 0:00:43]}  Ra7 {[%clk 0:00:08]} 44. g4 {[%clk 0:00:39]}  Kf6 {[%clk 0:00:08]} 45. e4 {[%clk 0:00:37]}  Kg6 {[%clk 0:00:08]} 46. Kg3 {[%clk 0:00:37]}  Ra3+ {[%clk 0:00:08]} 47. f3 {[%clk 0:00:36]}  h6 {[%clk 0:00:09]} 48. h4 {[%clk 0:00:35]}  Ra8 {[%clk 0:00:09]} 49. Rd5 {[%clk 0:00:35]}  Ra4 {[%clk 0:00:08]} 50. g5 {[%clk 0:00:33]}  hxg5 {[%clk 0:00:08]} 51. hxg5 {[%clk 0:00:33]}  Ra1 {[%clk 0:00:08]} 52. Kf4 {[%clk 0:00:32]}  Ra8 {[%clk 0:00:08]} 53. Rd6+ {[%clk 0:00:32]}  Kg7 {[%clk 0:00:09]} 54. Kg4 {[%clk 0:00:31]}  Ra1 {[%clk 0:00:09]} 55. e5 {[%clk 0:00:31]}  Rg1+ {[%clk 0:00:08]} 56. Kf5 {[%clk 0:00:31]}  Rh1 {[%clk 0:00:08]} 57. Rd7+ {[%clk 0:00:31]}  Kg8 {[%clk 0:00:09]} 58. Kg6 {[%clk 0:00:30]}  Kf8 {[%clk 0:00:08]} 59. f4 {[%clk 0:00:27]} 1-0


[Site "https://www.chess.com"]

[Event "Titled Tuesday Blitz December 14 2021"]
[White "Artemiev, Vladislav"]
[Black "Seliverstov, Vladimir"]
[WhiteFideId "24101605"]
[BlackFideId "4192036"]
[WhiteElo "2830"]
[BlackElo "2489"]
[Result "0-1"]
[Round "05"]
[TimeControl "180+1"]
[Date "2021.12.14"]
[WhiteClock "0:00:02"]
[BlackClock "0:00:48"]

1. e4 {[%clk 0:02:59]}  g6 {[%clk 0:02:59]} 2. d4 {[%clk 0:02:58]}  Bg7 {[%clk 0:03:00]} 3. Nf3 {[%clk 0:02:59]}  d6 {[%clk 0:03:00]} 4. Nc3 {[%clk 0:02:58]}  a6 {[%clk 0:03:00]} 5. Be3 {[%clk 0:02:57]}  b5 {[%clk 0:03:00]} 6. Bd3 {[%clk 0:02:47]}  Nd7 {[%clk 0:02:59]} 7. a4 {[%clk 0:02:46]}  b4 {[%clk 0:02:59]} 8. Ne2 {[%clk 0:02:44]}  c5 {[%clk 0:02:59]} 9. c3 {[%clk 0:02:44]}  Bb7 {[%clk 0:02:57]} 10. O-O {[%clk 0:02:42]}  Ngf6 {[%clk 0:02:54]} 11. Ng3 {[%clk 0:02:41]}  O-O {[%clk 0:02:53]} 12. h3 {[%clk 0:02:34]}  Qa5 {[%clk 0:02:45]} 13. Bd2 {[%clk 0:02:12]}  bxc3 {[%clk 0:02:37]} 14. Bxc3 {[%clk 0:02:12]}  Qc7 {[%clk 0:02:35]} 15. d5 {[%clk 0:02:10]}  c4 {[%clk 0:02:25]} 16. Bc2 {[%clk 0:02:06]}  Nc5 {[%clk 0:02:23]} 17. Re1 {[%clk 0:02:03]}  Rfc8 {[%clk 0:02:14]} 18. Nd2 {[%clk 0:01:58]}  a5 {[%clk 0:01:58]} 19. Nxc4 {[%clk 0:01:17]}  Ncxe4 {[%clk 0:01:56]} 20. Nxe4 {[%clk 0:01:17]}  Qxc4 {[%clk 0:01:56]} 21. Bb3 {[%clk 0:01:11]}  Qc7 {[%clk 0:01:54]} 22. Nxf6+ {[%clk 0:01:11]}  Bxf6 {[%clk 0:01:52]} 23. Bxf6 {[%clk 0:01:10]}  exf6 {[%clk 0:01:53]} 24. Qd4 {[%clk 0:01:11]}  Kg7 {[%clk 0:01:52]} 25. Re3 {[%clk 0:01:06]}  Qc5 {[%clk 0:01:48]} 26. Qd2 {[%clk 0:00:56]}  Rab8 {[%clk 0:01:40]} 27. Rae1 {[%clk 0:00:43]}  Ba8 {[%clk 0:01:32]} 28. Rf3 {[%clk 0:00:31]}  Qb4 {[%clk 0:01:29]} 29. Qd1 {[%clk 0:00:20]}  Re8 {[%clk 0:01:21]} 30. Rfe3 {[%clk 0:00:07]}  Re5 {[%clk 0:01:21]} 31. Kf1 {[%clk 0:00:03]}  Rbe8 {[%clk 0:01:17]} 32. Qd3 {[%clk 0:00:03]}  Bb7 {[%clk 0:01:11]} 33. Qb5 {[%clk 0:00:03]}  Qxb5+ {[%clk 0:01:03]} 34. axb5 {[%clk 0:00:04]}  f5 {[%clk 0:00:58]} 35. Rxe5 {[%clk 0:00:02]}  Rxe5 {[%clk 0:00:54]} 36. Rxe5 {[%clk 0:00:02]}  dxe5 {[%clk 0:00:55]} 37. d6 {[%clk 0:00:02]}  Kf8 {[%clk 0:00:55]} 38. b6 {[%clk 0:00:02]}  Ke8 {[%clk 0:00:49]} 39. Ba4+ {[%clk 0:00:03]}  Kd8 {[%clk 0:00:49]} 40. g3 {[%clk 0:00:03]}  g5 {[%clk 0:00:49]} 41. Ke2 {[%clk 0:00:03]}  f4 {[%clk 0:00:49]} 42. gxf4 {[%clk 0:00:03]}  exf4 {[%clk 0:00:48]} 43. f3 {[%clk 0:00:02]}  h5 {[%clk 0:00:47]} 44. Kf2 {[%clk 0:00:02]}  f5 {[%clk 0:00:47]} 45. Bc2 {[%clk 0:00:02]}  Kd7 {[%clk 0:00:48]} 46. Bxf5+ {[%clk 0:00:03]}  Kxd6 {[%clk 0:00:48]} 47. Bg6 {[%clk 0:00:02]}  h4 {[%clk 0:00:48]} 48. Be8 {[%clk 0:00:01]}  Kc5 {[%clk 0:00:48]} 49. Ke2 {[%clk 0:00:01]}  Kxb6 {[%clk 0:00:48]} 50. Bd7 {[%clk 0:00:01]}  Kc5 {[%clk 0:00:49]} 51. Bg4 {[%clk 0:00:01]}  Kd4 {[%clk 0:00:48]} 52. Kd2 {[%clk 0:00:02]}  Bd5 {[%clk 0:00:48]} 53. Kc2 {[%clk 0:00:02]}  Ke3 {[%clk 0:00:48]} 0-1


[Site "https://www.chess.com"]

[Event "Titled Tuesday Blitz December 14 2021"]
[White "Aslanov, Umid"]
[Black "Samunenkov, Ihor"]
[WhiteFideId "13412620"]
[BlackFideId "14187086"]
[WhiteElo "1796"]
[BlackElo "2348"]
[Result "0-1"]
[Round "05"]
[TimeControl "180+1"]
[Date "2021.12.15"]
[WhiteClock "0:00:10"]
[BlackClock "0:00:05"]

1. e4 {[%clk 0:03:00]}  c6 {[%clk 0:02:59]} 2. d4 {[%clk 0:03:00]}  d5 {[%clk 0:02:59]} 3. Nc3 {[%clk 0:03:01]}  dxe4 {[%clk 0:02:58]} 4. Nxe4 {[%clk 0:03:01]}  Nf6 {[%clk 0:02:59]} 5. Nxf6+ {[%clk 0:02:59]}  exf6 {[%clk 0:02:59]} 6. Nf3 {[%clk 0:02:59]}  Bd6 {[%clk 0:02:59]} 7. Be2 {[%clk 0:02:54]}  O-O {[%clk 0:02:59]} 8. O-O {[%clk 0:02:55]}  Re8 {[%clk 0:02:52]} 9. Re1 {[%clk 0:02:51]}  Bg4 {[%clk 0:02:51]} 10. h3 {[%clk 0:02:51]}  Bh5 {[%clk 0:02:50]} 11. c3 {[%clk 0:02:38]}  Nd7 {[%clk 0:02:46]} 12. Nh4 {[%clk 0:02:35]}  Bxe2 {[%clk 0:02:38]} 13. Rxe2 {[%clk 0:02:36]}  Qa5 {[%clk 0:02:37]} 14. Rxe8+ {[%clk 0:02:12]}  Rxe8 {[%clk 0:02:36]} 15. Be3 {[%clk 0:02:13]}  f5 {[%clk 0:02:30]} 16. b4 {[%clk 0:01:41]}  Qd5 {[%clk 0:02:29]} 17. Qb3 {[%clk 0:01:41]}  f4 {[%clk 0:02:28]} 18. Qxd5 {[%clk 0:01:40]}  cxd5 {[%clk 0:02:28]} 19. Bd2 {[%clk 0:01:40]}  Nb6 {[%clk 0:02:14]} 20. Nf5 {[%clk 0:01:13]}  Bc7 {[%clk 0:02:11]} 21. Re1 {[%clk 0:01:14]}  Rxe1+ {[%clk 0:02:08]} 22. Bxe1 {[%clk 0:01:15]}  g6 {[%clk 0:02:08]} 23. Nh4 {[%clk 0:01:01]}  f6 {[%clk 0:02:02]} 24. Kf1 {[%clk 0:00:58]}  Nc4 {[%clk 0:01:53]} 25. Ke2 {[%clk 0:00:57]}  b5 {[%clk 0:01:52]} 26. Kd3 {[%clk 0:00:54]}  Kf7 {[%clk 0:01:53]} 27. Nf3 {[%clk 0:00:54]}  Ke6 {[%clk 0:01:52]} 28. Nd2 {[%clk 0:00:54]}  Nd6 {[%clk 0:01:51]} 29. Nb3 {[%clk 0:00:52]}  f5 {[%clk 0:01:37]} 30. Nc5+ {[%clk 0:00:51]}  Ke7 {[%clk 0:01:38]} 31. Bd2 {[%clk 0:00:51]}  g5 {[%clk 0:01:38]} 32. f3 {[%clk 0:00:50]}  Nc4 {[%clk 0:01:37]} 33. a4 {[%clk 0:00:46]}  bxa4 {[%clk 0:01:17]} 34. Nxa4 {[%clk 0:00:45]}  h5 {[%clk 0:01:17]} 35. Bc1 {[%clk 0:00:35]}  Bd6 {[%clk 0:01:05]} 36. Nb2 {[%clk 0:00:32]}  Nb6 {[%clk 0:00:57]} 37. b5 {[%clk 0:00:27]}  Ke6 {[%clk 0:00:54]} 38. c4 {[%clk 0:00:24]}  dxc4+ {[%clk 0:00:50]} 39. Nxc4 {[%clk 0:00:25]}  Nd5 {[%clk 0:00:33]} 40. Na5 {[%clk 0:00:13]}  Kd7 {[%clk 0:00:25]} 41. Nc6 {[%clk 0:00:13]}  a6 {[%clk 0:00:24]} 42. Kc4 {[%clk 0:00:09]}  Nb6+ {[%clk 0:00:21]} 43. Kd3 {[%clk 0:00:08]}  axb5 {[%clk 0:00:22]} 44. Na7 {[%clk 0:00:05]}  b4 {[%clk 0:00:22]} 45. Nb5 {[%clk 0:00:06]}  Be7 {[%clk 0:00:16]} 46. h4 {[%clk 0:00:04]}  Kc6 {[%clk 0:00:15]} 47. Na7+ {[%clk 0:00:04]}  Kd5 {[%clk 0:00:16]} 48. hxg5 {[%clk 0:00:03]}  Bxg5 {[%clk 0:00:16]} 49. Nb5 {[%clk 0:00:02]}  Na4 {[%clk 0:00:05]} 50. Nc7+ {[%clk 0:00:02]}  Kd6 {[%clk 0:00:06]} 51. Ne8+ {[%clk 0:00:02]}  Kc6 {[%clk 0:00:03]} 52. Ng7 {[%clk 0:00:02]}  b3 {[%clk 0:00:03]} 53. Nxf5 {[%clk 0:00:01]}  b2 {[%clk 0:00:03]} 54. Bxb2 {[%clk 0:00:01]}  Nxb2+ {[%clk 0:00:04]} 55. Kc2 {[%clk 0:00:02]}  Nc4 {[%clk 0:00:04]} 56. Kd3 {[%clk 0:00:01]}  Kd5 {[%clk 0:00:04]} 57. Ng7 {[%clk 0:00:02]}  h4 {[%clk 0:00:03]} 58. Nf5 {[%clk 0:00:02]}  Ne3 {[%clk 0:00:04]} 59. Ne7+ {[%clk 0:00:03]}  Bxe7 {[%clk 0:00:03]} 60. Ke2 {[%clk 0:00:03]}  Kxd4 {[%clk 0:00:03]} 61. Kf2 {[%clk 0:00:04]}  Kd3 {[%clk 0:00:03]} 62. Kg1 {[%clk 0:00:05]}  Ke2 {[%clk 0:00:03]} 63. Kh2 {[%clk 0:00:05]}  Kf2 {[%clk 0:00:03]} 64. Kh3 {[%clk 0:00:06]}  Nxg2 {[%clk 0:00:04]} 65. Kh2 {[%clk 0:00:07]}  Kxf3 {[%clk 0:00:04]} 66. Kh3 {[%clk 0:00:08]}  Ne3 {[%clk 0:00:04]} 67. Kh2 {[%clk 0:00:09]}  Kg4 {[%clk 0:00:05]} 68. Kg1 {[%clk 0:00:09]}  f3 {[%clk 0:00:05]} 69. Kh2 {[%clk 0:00:10]}  f2 {[%clk 0:00:05]} 0-1


[Site "https://www.chess.com"]